fUSD/lending_fUSD_20260605
["ID","MTS","AMOUNT","RATE_DAILY","PERIOD"]
[424118299,1780601467000,-500.0,0.00037808,11]
[424118295,1780601467000,-500.0,0.00037808,11]
[424118294,1780601467000,-500.0,0.00037808,11]
[424118298,1780601467000,-500.0,0.00037808,11]
[424118296,1780601467000,-500.0,0.00037808,11]
[424118297,1780601467000,-500.0,0.00037808,11]
[424118303,1780601467000,-500.0,0.00037808,11]
[424118300,1780601467000,-500.0,0.00037808,11]
[424118302,1780601467000,-568.16,0.00037808,11]
[424118304,1780601467000,-500.0,0.00037808,11]
[424118305,1780601467000,-500.0,0.00037808,11]
[424118301,1780601467000,-500.0,0.00037808,11]
[424118330,1780601467000,-500.0,0.00037808,11]
[424118306,1780601467000,-616.25,0.00037808,11]
[424118314,1780601467000,-500.0,0.00037808,11]
[424118354,1780601467000,-500.0,0.00037808,11]
[424118313,1780601467000,-500.0,0.00037808,11]
[424118315,1780601467000,-688.44,0.00037808,11]
[424118310,1780601467000,-542.16251935,0.00037808,11]
[424118311,1780601467000,-572.79402679,0.00037808,11]
[424118308,1780601467000,-500.0,0.00037808,11]
[424118317,1780601467000,-500.0,0.00037808,11]
[424118312,1780601467000,-511.09,0.00037808,11]
[424118316,1780601467000,-500.0,0.00037808,11]
[424118318,1780601467000,-660.86,0.00037808,11]
[424118320,1780601467000,-500.0,0.00037808,11]
[424118319,1780601467000,-500.0,0.00037808,11]
[424118307,1780601467000,-500.0,0.00037808,11]
[424118346,1780601467000,-526.23,0.00037808,11]
[424118341,1780601467000,-500.0,0.00037808,11]
[424118356,1780601467000,-500.0,0.00037808,11]
[424118389,1780601467000,-500.0,0.00037808,11]
[424118392,1780601467000,-500.0,0.00037808,11]
[424118386,1780601467000,-500.0,0.00037808,11]
[424118387,1780601467000,-847.5,0.00037808,11]
[424118390,1780601467000,-500.0,0.00037808,11]
[424118394,1780601467000,-500.0,0.00037808,11]
[424118393,1780601467000,-500.0,0.00037808,11]
[424118395,1780601467000,-834.84,0.00037808,11]
[424118402,1780601467000,-500.0,0.00037808,11]
[424118397,1780601467000,-500.0,0.00037808,11]
[424118396,1780601467000,-500.0,0.00037808,11]
[424118400,1780601467000,-500.0,0.00037808,11]
[424118403,1780601467000,-500.0,0.00037808,11]
[424118398,1780601467000,-500.0,0.00037808,11]
[424118401,1780601467000,-500.0,0.00037808,11]
[424118404,1780601467000,-534.52,0.00037808,11]
[424118408,1780601467000,-500.0,0.00037808,11]
[424118414,1780601467000,-810.46,0.00037808,11]
[424118406,1780601467000,-500.0,0.00037808,11]
[424118412,1780601467000,-500.0,0.00037808,11]
[424118413,1780601467000,-500.0,0.00037808,11]
[424118411,1780601467000,-500.0,0.00037808,11]
[424118407,1780601467000,-500.0,0.00037808,11]
[424118410,1780601467000,-500.0,0.00037808,11]
[424118409,1780601467000,-590.71,0.00037808,11]
[424118405,1780601467000,-500.0,0.00037808,11]
[424118345,1780601467000,-500.0,0.00037808,11]
[424118388,1780601467000,-500.0,0.00037808,11]
[424118391,1780601467000,-500.0,0.00037808,11]
[424118399,1780601467000,-500.0,0.00037808,11]
[424118381,1780601467000,-608.41,0.00037808,11]
[424118355,1780601467000,-500.0,0.00037808,11]
[424118384,1780601467000,-500.0,0.00037808,11]
[424118365,1780601467000,-500.0,0.00037808,11]
[424118366,1780601467000,-500.0,0.00037808,11]
[424118367,1780601467000,-649.58,0.00037808,11]
[424118357,1780601467000,-500.0,0.00037808,11]
[424118362,1780601467000,-500.0,0.00037808,11]
[424118363,1780601467000,-608.17,0.00037808,11]
[424118358,1780601467000,-500.0,0.00037808,11]
[424118359,1780601467000,-500.0,0.00037808,11]
[424118360,1780601467000,-500.0,0.00037808,11]
[424118361,1780601467000,-500.0,0.00037808,11]
[424118372,1780601467000,-500.0,0.00037808,11]
[424118373,1780601467000,-500.0,0.00037808,11]
[424118364,1780601467000,-500.0,0.00037808,11]
[424118377,1780601467000,-500.0,0.00037808,11]
[424118379,1780601467000,-500.0,0.00037808,11]
[424118371,1780601467000,-589.82,0.00037808,11]
[424118376,1780601467000,-500.0,0.00037808,11]
[424118370,1780601467000,-513.78,0.00037808,11]
[424118369,1780601467000,-500.0,0.00037808,11]
[424118378,1780601467000,-500.0,0.00037808,11]
[424118374,1780601467000,-500.0,0.00037808,11]
[424118375,1780601467000,-500.0,0.00037808,11]
[424118380,1780601467000,-500.0,0.00037808,11]
[424118382,1780601467000,-734.23,0.00037808,11]
[424118368,1780601467000,-500.0,0.00037808,11]
[424118383,1780601467000,-500.0,0.00037808,11]
[424118385,1780601467000,-500.0,0.00037808,11]
[424118458,1780601468000,-737.5,0.00037808,11]
[424118459,1780601468000,-500.0,0.00037808,11]
[424118456,1780601468000,-878.44,0.00037808,11]
[424118469,1780601468000,-500.0,0.00037808,11]
[424118453,1780601468000,-500.0,0.00037808,11]
[424118450,1780601468000,-2661.47,0.00037808,11]
[424118455,1780601468000,-625.52,0.00037808,11]
[424118449,1780601468000,-500.0,0.00037808,11]
[424118451,1780601468000,-3301.75,0.00037808,11]
[424118452,1780601468000,-550.11,0.00037808,11]
[424118447,1780601468000,-500.0,0.00037808,11]
[424118463,1780601468000,-500.0,0.00037808,11]
[424118454,1780601468000,-761.79,0.00037808,11]
[424118461,1780601468000,-500.0,0.00037808,11]
[424118474,1780601468000,-500.0,0.00037808,11]
[424118467,1780601468000,-500.0,0.00037808,11]
[424118457,1780601468000,-938.89,0.00037808,11]
[424118462,1780601468000,-578.71791613,0.00037808,11]
[424118465,1780601468000,-500.0,0.00037808,11]
[424118460,1780601468000,-500.0,0.00037808,11]
[424118464,1780601468000,-500.0,0.00037808,11]
[424118466,1780601468000,-500.0,0.00037808,11]
[424118470,1780601468000,-500.0,0.00037808,11]
[424118472,1780601468000,-500.0,0.00037808,11]
[424118471,1780601468000,-500.0,0.00037808,11]
[424118473,1780601468000,-500.0,0.00037808,11]
[424118481,1780601468000,-500.0,0.00037808,11]
[424118475,1780601468000,-500.0,0.00037808,11]
[424118448,1780601468000,-715.51,0.00037808,11]
[424118468,1780601468000,-500.0,0.00037808,11]
[424118446,1780601468000,-545.11,0.00037808,11]
[424118415,1780601468000,-500.0,0.00037808,11]
[424118444,1780601468000,-500.0,0.00037808,11]
[424118476,1780601468000,-637.68,0.00037808,11]
[424118417,1780601468000,-500.0,0.00037808,11]
[424118416,1780601468000,-500.0,0.00037808,11]
[424118429,1780601468000,-500.0,0.00037808,11]
[424118419,1780601468000,-500.0,0.00037808,11]
[424118427,1780601468000,-500.0,0.00037808,11]
[424118422,1780601468000,-500.0,0.00037808,11]
[424118420,1780601468000,-500.0,0.00037808,11]
[424118424,1780601468000,-500.0,0.00037808,11]
[424118425,1780601468000,-500.0,0.00037808,11]
[424118418,1780601468000,-542.6,0.00037808,11]
[424118423,1780601468000,-500.0,0.00037808,11]
[424118421,1780601468000,-500.0,0.00037808,11]
[424118426,1780601468000,-355.56,0.00037808,11]
[424118428,1780601468000,-500.0,0.00037808,11]
[424118439,1780601468000,-210.48,0.00037808,60]
[424118431,1780601468000,-500.0,0.00037808,11]
[424118430,1780601468000,-329.63976575,0.00037808,11]
[424118441,1780601468000,-427.4210252,0.00037808,11]
[424118443,1780601468000,-500.0,0.00037808,11]
[424118442,1780601468000,-500.0,0.00037808,11]
[424118432,1780601468000,-500.0,0.00037808,11]
[424118440,1780601468000,-667.4,0.00037808,11]
[424118435,1780601468000,-500.0,0.00037808,11]
[424118433,1780601468000,-500.0,0.00037808,11]
[424118438,1780601468000,-500.0,0.00037808,11]
[424118434,1780601468000,-500.0,0.00037808,11]
[424118437,1780601468000,-500.0,0.00037808,11]
[424118436,1780601468000,-631.12,0.00037808,11]
[424118445,1780601468000,-500.0,0.00037808,11]
[424118477,1780601468000,-500.0,0.00037808,11]
[424118479,1780601468000,-563.67,0.00037808,11]
[424118482,1780601468000,-500.0,0.00037808,11]
[424118514,1780601468000,-538.96,0.00037808,11]
[424118521,1780601468000,-500.0,0.00037808,11]
[424118515,1780601468000,-500.0,0.00037808,11]
[424118517,1780601468000,-500.0,0.00037808,11]
[424118516,1780601468000,-500.0,0.00037808,11]
[424118518,1780601468000,-500.0,0.00037808,11]
[424118520,1780601468000,-500.0,0.00037808,11]
[424118519,1780601468000,-500.0,0.00037808,11]
[424118523,1780601468000,-636.34660571,0.00037808,11]
[424118524,1780601468000,-500.0,0.00037808,11]
[424118533,1780601468000,-4203.86,0.00037808,11]
[424118534,1780601468000,-500.0,0.00037808,11]
[424118526,1780601468000,-500.0,0.00037808,11]
[424118522,1780601468000,-500.0,0.00037808,11]
[424118525,1780601468000,-500.0,0.00037808,11]
[424118528,1780601468000,-500.0,0.00037808,11]
[424118531,1780601468000,-500.0,0.00037808,11]
[424118527,1780601468000,-500.0,0.00037808,11]
[424118530,1780601468000,-500.0,0.00037808,11]
[424118529,1780601468000,-600.70213411,0.00037808,11]
[424118532,1780601468000,-675.05,0.00037808,11]
[424118536,1780601468000,-526.51868641,0.00037808,11]
[424118537,1780601468000,-741.75,0.00037808,11]
[424118535,1780601468000,-500.0,0.00037808,11]
[424118538,1780601468000,-500.0,0.00037808,11]
[424118539,1780601468000,-808.02,0.00037808,11]
[424118542,1780601468000,-619.28,0.00037808,11]
[424118541,1780601468000,-500.0,0.00037808,11]
[424118480,1780601468000,-500.0,0.00037808,11]
[424118510,1780601468000,-500.0,0.00037808,11]
[424118513,1780601468000,-1470.71,0.00037808,11]
[424118543,1780601468000,-542.45,0.00037808,11]
[424118511,1780601468000,-500.0,0.00037808,11]
[424118478,1780601468000,-500.0,0.00037808,11]
[424118483,1780601468000,-500.0,0.00037808,11]
[424118540,1780601468000,-500.0,0.00037808,11]
[424118485,1780601468000,-500.0,0.00037808,11]
[424118484,1780601468000,-522.36,0.00037808,11]
[424118486,1780601468000,-500.0,0.00037808,11]
[424118496,1780601468000,-500.0,0.00037808,11]
[424118495,1780601468000,-500.0,0.00037808,11]
[424118512,1780601468000,-500.0,0.00037808,11]
[424118489,1780601468000,-500.0,0.00037808,11]
[424118493,1780601468000,-500.0,0.00037808,11]
[424118491,1780601468000,-500.0,0.00037808,11]
[424118490,1780601468000,-500.0,0.00037808,11]
[424118487,1780601468000,-500.0,0.00037808,11]
[424118488,1780601468000,-809.94,0.00037808,11]
[424118492,1780601468000,-500.0,0.00037808,11]
[424118509,1780601468000,-500.0,0.00037808,11]
[424118494,1780601468000,-553.82340774,0.00037808,11]
[424118507,1780601468000,-500.0,0.00037808,11]
[424118502,1780601468000,-500.0,0.00037808,11]
[424118503,1780601468000,-500.0,0.00037808,11]
[424118506,1780601468000,-169.01968184,0.00037808,11]
[424118505,1780601468000,-500.0,0.00037808,11]
[424118501,1780601468000,-500.0,0.00037808,11]
[424118499,1780601468000,-500.0,0.00037808,11]
[424118498,1780601468000,-500.0,0.00037808,11]
[424118508,1780601468000,-500.0,0.00037808,11]
[424118497,1780601468000,-500.0,0.00037808,11]
[424118500,1780601468000,-500.0,0.00037808,11]
[424118504,1780601468000,-500.0,0.00037808,11]
[424118584,1780601469000,-2986.57,0.00037808,11]
[424118598,1780601469000,-500.0,0.00037808,11]
[424118588,1780601469000,-500.0,0.00037808,11]
[424118583,1780601469000,-2751.28,0.00037808,11]
[424118577,1780601469000,-500.0,0.00037808,11]
[424118579,1780601469000,-500.0,0.00037808,11]
[424118585,1780601469000,-500.0,0.00037808,11]
[424118582,1780601469000,-500.0,0.00037808,11]
[424118580,1780601469000,-500.0,0.00037808,11]
[424118578,1780601469000,-500.0,0.00037808,11]
[424118581,1780601469000,-574.36,0.00037808,11]
[424118586,1780601469000,-3857.65,0.00037808,11]
[424118587,1780601469000,-500.0,0.00037808,11]
[424118602,1780601469000,-500.0,0.00037808,11]
[424118592,1780601469000,-500.0,0.00037808,11]
[424118594,1780601469000,-500.0,0.00037808,11]
[424118597,1780601469000,-500.0,0.00037808,11]
[424118591,1780601469000,-500.0,0.00037808,11]
[424118595,1780601469000,-197.23010062,0.00037808,11]
[424118590,1780601469000,-500.0,0.00037808,11]
[424118596,1780601469000,-500.0,0.00037808,11]
[424118589,1780601469000,-500.0,0.00037808,11]
[424118599,1780601469000,-546.54069716,0.00037808,11]
[424118600,1780601469000,-500.0,0.00037808,11]
[424118603,1780601469000,-500.0,0.00037808,2]
[424118606,1780601469000,-500.0,0.00037808,11]
[424118576,1780601469000,-500.0,0.00037808,11]
[424118593,1780601469000,-500.0,0.00037808,11]
[424118574,1780601469000,-500.0,0.00037808,11]
[424118548,1780601469000,-500.0,0.00037808,11]
[424118573,1780601469000,-500.0,0.00037808,11]
[424118608,1780601469000,-500.0,0.00037808,11]
[424118547,1780601469000,-500.0,0.00037808,11]
[424118544,1780601469000,-500.0,0.00037808,11]
[424118546,1780601469000,-500.0,0.00037808,11]
[424118545,1780601469000,-500.0,0.00037808,11]
[424118549,1780601469000,-2731.82,0.00037808,11]
[424118550,1780601469000,-500.0,0.00037808,11]
[424118551,1780601469000,-929.56,0.00037808,11]
[424118561,1780601469000,-500.0,0.00037808,11]
[424118559,1780601469000,-500.0,0.00037808,11]
[424118555,1780601469000,-500.0,0.00037808,11]
[424118557,1780601469000,-500.0,0.00037808,11]
[424118553,1780601469000,-500.0,0.00037808,11]
[424118575,1780601469000,-500.0,0.00037808,11]
[424118558,1780601469000,-500.0,0.00037808,11]
[424118552,1780601469000,-600.94,0.00037808,11]
[424118560,1780601469000,-500.0,0.00037808,11]
[424118556,1780601469000,-500.0,0.00037808,11]
[424118562,1780601469000,-500.0,0.00037808,11]
[424118564,1780601469000,-500.0,0.00037808,11]
[424118566,1780601469000,-500.0,0.00037808,11]
[424118567,1780601469000,-500.0,0.00037808,11]
[424118569,1780601469000,-500.0,0.00037808,11]
[424118568,1780601469000,-500.0,0.00037808,11]
[424118571,1780601469000,-551.27,0.00037808,11]
[424118563,1780601469000,-500.0,0.00037808,11]
[424118570,1780601469000,-500.0,0.00037808,11]
[424118572,1780601469000,-500.0,0.00037808,11]
[424118554,1780601469000,-500.0,0.00037808,11]
[424118610,1780601469000,-528.61,0.00037808,11]
[424118565,1780601469000,-821.02,0.00037808,11]
[424118601,1780601469000,-500.0,0.00037808,11]
[424118645,1780601469000,-500.0,0.00037808,11]
[424118640,1780601469000,-500.0,0.00037808,11]
[424118638,1780601469000,-500.0,0.00037808,11]
[424118646,1780601469000,-500.0,0.00037808,11]
[424118642,1780601469000,-500.0,0.00037808,11]
[424118641,1780601469000,-603.9,0.00037808,11]
[424118668,1780601469000,-500.0,0.00037808,11]
[424118644,1780601469000,-500.0,0.00037808,11]
[424118643,1780601469000,-500.0,0.00037808,11]
[424118650,1780601469000,-500.0,0.00037808,3]
[424118651,1780601469000,-465.0258121,0.00037808,11]
[424118652,1780601469000,-500.0,0.00037808,11]
[424118653,1780601469000,-534.99,0.00037808,11]
[424118639,1780601469000,-500.0,0.00037808,11]
[424118649,1780601469000,-500.0,0.00037808,11]
[424118660,1780601469000,-500.0,0.00037808,11]
[424118657,1780601469000,-500.0,0.00037808,11]
[424118654,1780601469000,-500.0,0.00037808,11]
[424118658,1780601469000,-638.53522403,0.00037808,11]
[424118656,1780601469000,-544.81536969,0.00037808,11]
[424118655,1780601469000,-500.0,0.00037808,11]
[424118663,1780601469000,-500.0,0.00037808,11]
[424118662,1780601469000,-500.0,0.00037808,11]
[424118664,1780601469000,-500.0,0.00037808,11]
[424118666,1780601469000,-500.0,0.00037808,11]
[424118667,1780601469000,-151.0,0.00037808,11]
[424118665,1780601469000,-500.0,0.00037808,11]
[424118604,1780601469000,-500.0,0.00037808,11]
[424118661,1780601469000,-500.0,0.00037808,11]
[424118636,1780601469000,-4507.46,0.00037808,11]
[424118659,1780601469000,-500.0,0.00037808,11]
[424118648,1780601469000,-500.0,0.00037808,11]
[424118647,1780601469000,-500.0,0.00037808,11]
[424118609,1780601469000,-500.0,0.00037808,11]
[424118607,1780601469000,-500.0,0.00037808,11]
[424118612,1780601469000,-500.0,0.00037808,11]
[424118622,1780601469000,-4960.3,0.00037808,11]
[424118614,1780601469000,-500.0,0.00037808,11]
[424118613,1780601469000,-2635.06,0.00037808,11]
[424118615,1780601469000,-500.0,0.00037808,11]
[424118616,1780601469000,-1000.0,0.00037808,11]
[424118605,1780601469000,-500.0,0.00037808,11]
[424118617,1780601469000,-262.45203239,0.00037808,11]
[424118619,1780601469000,-397.8575858,0.00037808,11]
[424118620,1780601469000,-375.36366188,0.00037808,11]
[424118621,1780601469000,-500.0,0.00037808,11]
[424118611,1780601469000,-500.0,0.00037808,11]
[424118623,1780601469000,-500.0,0.00037808,11]
[424118637,1780601469000,-500.0,0.00037808,11]
[424118618,1780601469000,-500.0,0.00037808,11]
[424118630,1780601469000,-560.56,0.00037808,11]
[424118631,1780601469000,-2951.02,0.00037808,11]
[424118633,1780601469000,-500.0,0.00037808,11]
[424118629,1780601469000,-599.14,0.00037808,11]
[424118632,1780601469000,-500.0,0.00037808,11]
[424118635,1780601469000,-3132.24,0.00037808,11]
[424118634,1780601469000,-500.0,0.00037808,11]
[424118624,1780601469000,-500.0,0.00037808,11]
[424118625,1780601469000,-500.0,0.00037808,11]
[424118627,1780601469000,-3315.98,0.00037808,11]
[424118626,1780601469000,-500.0,0.00037808,11]
[424118628,1780601469000,-3050.34,0.00037808,11]
[424118689,1780601470000,-500.0,0.00037808,11]
[424118699,1780601470000,-500.0,0.00037808,11]
[424118694,1780601470000,-500.0,0.00037808,11]
[424118695,1780601470000,-500.0,0.00037808,11]
[424118693,1780601470000,-17170.904576,0.00037808,11]
[424118697,1780601470000,-3079.67,0.00037808,11]
[424118696,1780601470000,-459.14461727,0.00037808,11]
[424118700,1780601470000,-516.59,0.00037808,11]
[424118698,1780601470000,-181.49498021,0.00037808,11]
[424118702,1780601470000,-500.0,0.00037808,11]
[424118704,1780601470000,-500.0,0.00037808,11]
[424118705,1780601470000,-500.0,0.00037808,11]
[424118703,1780601470000,-2062.53,0.00037808,11]
[424118706,1780601470000,-500.0,0.00037808,11]
[424118707,1780601470000,-500.0,0.00037808,11]
[424118709,1780601470000,-500.0,0.00037808,11]
[424118711,1780601470000,-500.0,0.00037808,11]
[424118691,1780601470000,-3559.06,0.00037808,11]
[424118701,1780601470000,-500.0,0.00037808,11]
[424118692,1780601470000,-500.0,0.00037808,11]
[424118675,1780601470000,-500.0,0.00037808,11]
[424118688,1780601470000,-2895.13,0.00037808,11]
[424118708,1780601470000,-500.0,0.00037808,11]
[424118673,1780601470000,-500.0,0.00037808,11]
[424118674,1780601470000,-500.0,0.00037808,11]
[424118671,1780601470000,-500.0,0.00037808,11]
[424118669,1780601470000,-500.0,0.00037808,11]
[424118670,1780601470000,-500.0,0.00037808,11]
[424118672,1780601470000,-500.0,0.00037808,11]
[424118677,1780601470000,-175.18555676,0.00037808,11]
[424118680,1780601470000,-500.0,0.00037808,11]
[424118678,1780601470000,-500.0,0.00037808,11]
[424118679,1780601470000,-500.0,0.00037808,11]
[424118676,1780601470000,-500.0,0.00037808,11]
[424118681,1780601470000,-10315.542579,0.00037808,11]
[424118683,1780601470000,-500.0,0.00037808,11]
[424118682,1780601470000,-1237.98,0.00037808,11]
[424118684,1780601470000,-500.0,0.00037808,11]
[424118685,1780601470000,-4427.54,0.00037808,11]
[424118687,1780601470000,-231.3865314,0.00037808,11]
[424118686,1780601470000,-500.0,0.00037808,11]
[424118690,1780601470000,-748.6,0.00037808,11]
[424118712,1780601470000,-500.0,0.00037808,11]
[424118714,1780601470000,-500.0,0.00037808,11]
[424118717,1780601470000,-500.0,0.00037808,11]
[424118739,1780601470000,-4217.58,0.00037808,11]
[424118738,1780601470000,-500.0,0.00037808,11]
[424118736,1780601470000,-500.0,0.00037808,11]
[424118742,1780601470000,-500.0,0.00037808,11]
[424118750,1780601470000,-500.0,0.00037808,11]
[424118741,1780601470000,-500.0,0.00037808,11]
[424118744,1780601470000,-569.6,0.00037808,11]
[424118749,1780601470000,-500.0,0.00037808,11]
[424118740,1780601470000,-4066.44,0.00037808,11]
[424118743,1780601470000,-781.98,0.00037808,11]
[424118745,1780601470000,-5547.5,0.00037808,11]
[424118748,1780601470000,-995.33,0.00037808,10]
[424118752,1780601470000,-500.0,0.00037808,11]
[424118751,1780601470000,-500.0,0.00037808,11]
[424118755,1780601470000,-681.44,0.00037808,11]
[424118754,1780601470000,-500.0,0.00037808,11]
[424118753,1780601470000,-500.0,0.00037808,11]
[424118710,1780601470000,-3965.92,0.00037808,11]
[424118746,1780601470000,-3043.72,0.00037808,11]
[424118737,1780601470000,-625.17,0.00037808,11]
[424118747,1780601470000,-510.67854122,0.00037808,11]
[424118734,1780601470000,-500.0,0.00037808,11]
[424118713,1780601470000,-500.0,0.00037808,11]
[424118735,1780601470000,-2893.01,0.00037808,11]
[424118715,1780601470000,-500.0,0.00037808,11]
[424118716,1780601470000,-500.0,0.00037808,11]
[424118729,1780601470000,-500.0,0.00037808,11]
[424118721,1780601470000,-50198.282665,0.00037808,11]
[424118720,1780601470000,-4258.42,0.00037808,11]
[424118718,1780601470000,-500.0,0.00037808,11]
[424118722,1780601470000,-500.0,0.00037808,11]
[424118719,1780601470000,-671.79,0.00037808,11]
[424118724,1780601470000,-500.0,0.00037808,11]
[424118728,1780601470000,-500.0,0.00037808,11]
[424118723,1780601470000,-783.25,0.00037808,7]
[424118727,1780601470000,-500.0,0.00037808,11]
[424118725,1780601470000,-500.0,0.00037808,11]
[424118732,1780601470000,-500.0,0.00037808,11]
[424118730,1780601470000,-605.1,0.00037808,11]
[424118726,1780601470000,-500.0,0.00037808,11]
[424118733,1780601470000,-3018.08,0.00037808,11]
[424118731,1780601470000,-500.0,0.00037808,11]
[424118797,1780601471000,-500.0,0.00037808,11]
[424118793,1780601471000,-500.0,0.00037808,11]
[424118794,1780601471000,-500.0,0.00037808,11]
[424118795,1780601471000,-500.0,0.00037808,11]
[424118789,1780601471000,-542.01,0.00037808,11]
[424118791,1780601471000,-3295.91,0.00037808,11]
[424118790,1780601471000,-500.0,0.00037808,11]
[424118787,1780601471000,-848.37,0.00037808,11]
[424118805,1780601471000,-500.0,0.00037808,11]
[424118788,1780601471000,-3578.37,0.00037808,11]
[424118792,1780601471000,-1409.17,0.00037808,11]
[424118804,1780601471000,-3281.1,0.00037808,11]
[424118810,1780601471000,-632.6,0.00037808,11]
[424118799,1780601471000,-500.0,0.00037808,11]
[424118806,1780601471000,-2571.81,0.00037808,11]
[424118798,1780601471000,-500.0,0.00037808,11]
[424118801,1780601471000,-500.0,0.00037808,11]
[424118803,1780601471000,-500.75781891,0.00037808,11]
[424118800,1780601471000,-500.0,0.00037808,11]
[424118802,1780601471000,-621.98,0.00037808,11]
[424118807,1780601471000,-661.28,0.00037808,11]
[424118809,1780601471000,-4100.24,0.00037808,11]
[424118811,1780601471000,-599.98223345,0.00037808,11]
[424118813,1780601471000,-500.0,0.00037808,11]
[424118786,1780601471000,-501.58,0.00037808,11]
[424118796,1780601471000,-500.0,0.00037808,11]
[424118785,1780601471000,-926.27,0.00037808,11]
[424118768,1780601471000,-509.94,0.00037808,11]
[424118781,1780601471000,-500.0,0.00037808,11]
[424118812,1780601471000,-500.0,0.00037808,11]
[424118758,1780601471000,-500.0,0.00037808,11]
[424118759,1780601471000,-500.0,0.00037808,11]
[424118756,1780601471000,-4030.2,0.00037808,11]
[424118760,1780601471000,-500.0,0.00037808,11]
[424118757,1780601471000,-500.0,0.00037808,11]
[424118761,1780601471000,-500.0,0.00037808,11]
[424118764,1780601471000,-545.79,0.00037808,11]
[424118771,1780601471000,-4506.51,0.00037808,11]
[424118763,1780601471000,-500.0,0.00037808,11]
[424118765,1780601471000,-500.0,0.00037808,11]
[424118766,1780601471000,-500.0,0.00037808,11]
[424118784,1780601471000,-1021.72,0.00037808,11]
[424118769,1780601471000,-639.13,0.00037808,11]
[424118770,1780601471000,-501.22,0.00037808,11]
[424118767,1780601471000,-776.36,0.00037808,11]
[424118772,1780601471000,-3838.41,0.00037808,11]
[424118783,1780601471000,-500.0,0.00037808,11]
[424118774,1780601471000,-500.0,0.00037808,11]
[424118776,1780601471000,-500.0,0.00037808,11]
[424118775,1780601471000,-370.72860659,0.00037808,11]
[424118777,1780601471000,-500.0,0.00037808,11]
[424118778,1780601471000,-500.0,0.00037808,11]
[424118779,1780601471000,-500.0,0.00037808,11]
[424118782,1780601471000,-621.19,0.00037808,11]
[424118780,1780601471000,-545.01,0.00037808,11]
[424118762,1780601471000,-3576.93,0.00037808,11]
[424118808,1780601471000,-623.43328011,0.00037808,11]
[424118773,1780601471000,-500.0,0.00037808,11]
[424118815,1780601471000,-500.0,0.00037808,11]
[424118850,1780601471000,-500.0,0.00037808,11]
[424118849,1780601471000,-500.0,0.00037808,11]
[424118846,1780601471000,-500.0,0.00037808,11]
[424118845,1780601471000,-535.7,0.00037808,11]
[424118847,1780601471000,-500.0,0.00037808,11]
[424118854,1780601471000,-500.0,0.00037808,11]
[424118855,1780601471000,-4227.65,0.00037808,11]
[424118871,1780601471000,-3552.5,0.00037808,11]
[424118851,1780601471000,-2267.8,0.00037808,11]